bitfinex-derivatives/quotes_ETHF0:USTF0_20250912
["timestamp","ask_amount","ask_price","bid_price","bid_amount"]
[1757654518280,0.6322,4527.5,4527.4,0.3128]
[1757654518480,0.8397,4527.5,4527.4,0.3128]
[1757654518682,0.4359,4527.5,4527.4,1.62016118]
[1757654518879,0.4359,4527.5,4527.4,1.59216118]
[1757654519071,0.6322,4527.5,4527.4,1.59216118]
[1757654519684,0.8397,4527.5,4527.4,1.59216118]
[1757654520488,0.8397,4527.5,4527.4,1.40591235]
[1757654520991,0.8397,4527.5,4527.4,1.31611235]
[1757654521181,0.8397,4527.5,4527.4,1.36101235]
[1757654522089,0.8397,4527.5,4527.4,1.40591235]
[1757654525289,0.8397,4527.5,4527.4,1.18291235]
[1757654525489,0.8397,4527.5,4527.4,1.40591235]
[1757654532595,0.8397,4527.5,4527.4,1.18291235]
[1757654532797,0.8397,4527.5,4527.4,1.40591235]
[1757654532995,0.8392,4527.0,4526.9,23.3]
[1757654533192,0.8392,4527.0,4526.9,23.5679]
[1757654533394,0.4354,4527.0,4526.9,23.6408]
[1757654533695,0.1181,4527.5,4527.4,0.0898]
[1757654533696,0.4359,4527.5,4527.4,0.0898]
[1757654533895,0.8397,4527.5,4527.4,0.3128]
[1757654534096,0.8397,4527.5,4527.4,0.2679]
[1757654534394,0.8397,4527.5,4527.4,1.40591235]
[1757654535901,0.5214,4527.0,4526.9,23.3449]
[1757654536092,0.8392,4527.0,4526.9,24.70591235]
[1757654536500,0.1181,4527.5,4527.4,0.0898]
[1757654536690,0.3144,4527.5,4527.4,1.40591235]
[1757654537098,0.5219,4527.5,4527.4,1.40591235]
[1757654537301,0.8397,4527.5,4527.4,1.40591235]
[1757654538297,0.4359,4527.5,4527.4,1.43391235]
[1757654538490,0.3178,4527.5,4527.4,1.43391235]
[1757654538896,0.4354,4527.5,4527.4,1.43391235]
[1757654539801,0.6317,4527.5,4527.4,1.40591235]
[1757654540005,0.8392,4527.5,4527.4,0.3128]
[1757654540201,0.8392,4527.5,4527.4,1.40591235]
[1757654541296,0.5214,4527.5,4527.4,0.223]
[1757654541904,0.8392,4527.5,4527.4,0.223]
[1757654542299,0.8392,4527.5,4527.4,0.2679]
[1757654544405,0.8392,4527.5,4527.4,0.3128]
[1757654544614,0.6317,4527.5,4527.4,0.3408]
[1757654545004,0.6317,4527.5,4527.4,1.43391235]
[1757654546016,0.6317,4527.5,4527.4,1.40591235]
[1757654549608,0.2874,4527.9,4527.4,1.40591235]
[1757654549916,0.3155,4528.5,4528.4,0.1194]
[1757654550215,0.1209,4530.0,4529.5,0.0288]
[1757654550413,0.6057,4530.0,4529.9,1.18371235]
[1757654551111,0.4083,4530.0,4529.9,24.62563999]
[1757654551308,0.1209,4530.5,4529.9,24.62563999]
[1757654551508,0.2874,4530.3,4530.0,0.31312764]
[1757654551709,0.6912,4530.2,4530.1,0.53612764]
[1757654553013,0.6912,4530.2,4530.1,0.31312764]
[1757654553310,0.6912,4530.2,4530.1,0.53612764]
[1757654555410,0.6912,4530.2,4530.1,0.223]
[1757654556812,0.6912,4530.2,4530.1,0.54547332]
[1757654558118,0.5247,4530.0,4529.9,23.1]
[1757654558314,0.8121,4530.0,4529.9,23.598692]
[1757654559320,0.8121,4530.0,4529.9,23.322]
[1757654559625,0.1209,4529.0,4528.9,0.1194]
[1757654559816,0.4083,4529.0,4528.9,1.71120346]
[1757654560119,0.4083,4529.0,4528.9,24.81120346]
[1757654561419,0.4083,4529.0,4528.9,23.71809111]
[1757654561626,0.4083,4529.0,4528.9,23.42229111]
[1757654561627,0.8121,4529.0,4528.9,23.42229111]
[1757654561921,0.8121,4529.0,4528.9,23.59869111]
[1757654563619,0.8121,4529.0,4528.9,0.27669111]
[1757654563823,0.8121,4529.0,4528.9,0.195]
[1757654564220,0.8121,4529.0,4528.9,0.47183856]
[1757654564617,0.8121,4529.0,4528.5,23.1]
[1757654564817,0.6912,4528.7,4528.5,23.322]
[1757654565020,0.6912,4528.6,4528.5,23.322]
[1757654565317,0.6912,4528.6,4528.5,23.59893145]
[1757654565922,0.6912,4528.6,4528.5,0.27693145]
[1757654569127,0.6912,4528.6,4528.5,0.36753145]
[1757654569925,0.6912,4528.6,4528.5,0.27693145]
[1757654570429,0.4083,4527.5,4527.4,0.0906]
[1757654570727,0.4083,4527.5,4527.4,1.43451235]
[1757654570929,0.2874,4527.5,4527.4,24.53451235]
[1757654571522,0.6057,4527.5,4527.4,23.1906]
[1757654571722,0.6057,4527.5,4527.4,23.4126]
[1757654571922,0.8121,4527.5,4527.4,23.4126]
[1757654573234,0.8121,4527.5,4527.4,24.53451235]
[1757654573235,0.4083,4527.5,4527.4,24.53451235]
[1757654573531,0.1209,4528.0,4527.9,0.1208]
[1757654573736,0.1209,4528.0,4527.9,0.314]
[1757654573936,0.6057,4528.0,4527.9,0.314]
[1757654576347,0.8121,4528.0,4527.9,0.314]
[1757654578141,0.8121,4528.0,4527.9,0.268]
[1757654579948,0.8121,4528.0,4527.9,0.3139]
[1757654580349,0.6057,4528.0,4527.9,0.3139]
[1757654581552,0.8252,4527.5,4527.4,23.1918]
[1757654581857,0.6232,4527.5,4527.4,23.4138]
[1757654582050,0.4268,4527.5,4527.4,23.4421]
[1757654582353,0.8252,4527.5,4527.4,23.4138]
[1757654583049,0.8252,4527.5,4527.4,23.1918]
[1757654583249,0.8252,4527.5,4527.4,23.4138]
[1757654584645,0.8252,4527.5,4527.4,23.1918]
[1757654584845,0.8252,4527.5,4527.4,23.4138]
[1757654585352,0.8252,4527.5,4527.4,23.1918]
[1757654585551,0.8252,4527.5,4527.4,23.4138]
[1757654585850,0.8252,4527.5,4527.4,23.1459]
[1757654586047,0.8252,4527.5,4527.4,23.3679]
[1757654588150,0.1209,4528.0,4527.4,23.4138]
[1757654588452,0.1209,4528.0,4527.9,0.0918]
[1757654588453,0.3173,4528.0,4527.9,0.0918]
[1757654588653,0.3173,4528.0,4527.9,0.3138]
[1757654589041,0.6176,4528.0,4527.9,0.3138]
[1757654590054,0.1209,4528.5,4527.9,0.3138]
[1757654590250,0.3003,4528.9,4528.4,0.0283]
[1757654590554,0.3003,4528.9,4528.8,0.1201]
[1757654590757,0.3003,4528.9,4528.8,23.4421]
[1757654591756,0.1265,4529.5,4528.8,23.4421]
[1757654591944,0.3003,4529.4,4528.8,23.4421]
[1757654592149,0.1265,4529.5,4528.8,23.4421]
[1757654592657,0.1265,4529.0,4528.8,23.4421]
[1757654592857,0.3003,4528.9,4528.8,23.4421]
[1757654593556,0.3003,4528.9,4528.8,23.4138]
[1757654593754,0.6987,4528.9,4528.8,23.1]
[1757654593946,0.6987,4528.9,4528.8,23.322]
[1757654595151,0.6987,4528.9,4528.8,23.3679]
[1757654595860,0.6987,4528.9,4528.8,23.4138]
[1757654597257,0.6987,4528.9,4528.8,23.322]
[1757654597957,0.6987,4528.9,4528.8,23.3679]
[1757654599261,0.6987,4528.9,4528.8,23.4138]
[1757654599761,0.4967,4528.9,4528.8,23.4138]
[1757654601260,0.6987,4528.9,4528.8,23.4138]
[1757654603060,0.6987,4528.9,4528.8,0.222]
[1757654603850,0.8252,4528.5,4528.4,0.0459]
[1757654604154,0.8252,4528.5,4528.4,0.222]
[1757654604858,0.3003,4528.4,4528.3,23.1]
[1757654605054,0.6987,4528.4,4528.3,23.322]
[1757654605452,0.6987,4528.4,4528.3,23.3679]
[1757654606156,0.6987,4528.4,4528.3,23.1]
[1757654606454,0.8252,4528.0,4527.9,0.0918]
[1757654606654,0.8252,4528.0,4527.9,0.3138]
[1757654606962,0.8252,4528.0,4527.9,23.4138]
[1757654609161,0.8252,4528.0,4527.9,23.3679]
[1757654609359,0.8252,4528.0,4527.9,0.2679]
[1757654613653,0.8252,4528.0,4527.9,0.222]
[1757654614468,0.5249,4528.0,4527.8,0.222]
[1757654614764,0.6888,4527.9,4527.8,0.2678]
[1757654615661,0.6888,4527.9,4527.3,23.1]
[1757654615853,0.6096,4527.5,4527.4,0.3136]
[1757654623068,0.8075,4527.5,4527.4,0.3136]
[1757654624070,0.8075,4527.5,4527.4,0.0916]
[1757654624260,0.8075,4527.5,4527.4,0.3136]
[1757654624464,0.8075,4527.5,4527.4,0.0916]
[1757654624664,0.8075,4527.5,4527.4,0.3136]
[1757654625066,0.8075,4527.5,4527.4,0.2678]
[1757654629167,0.2994,4527.4,4527.3,23.1]
[1757654629367,0.6888,4527.4,4527.3,23.322]
[1757654630164,0.6888,4527.4,4527.3,23.3678]
[1757654632965,0.6888,4527.4,4526.8,2.01291938]
[1757654632966,0.3894,4526.9,4526.8,1.98431938]
[1757654633168,0.1187,4526.0,4525.9,0.3138]
[1757654633364,0.4181,4526.0,4525.9,0.3425]
[1757654633862,0.8075,4526.0,4525.9,0.0918]
[1757654634162,0.6888,4525.6,4525.5,23.1918]
[1757654634369,0.6888,4525.6,4525.5,23.4138]
[1757654634758,0.6888,4525.6,4525.5,23.1918]
[1757654634961,0.6888,4525.6,4525.5,23.4138]
[1757654636268,0.4909,4525.6,4525.5,23.4138]
[1757654637062,0.2994,4525.6,4525.5,23.4425]
[1757654637267,0.1187,4526.5,4526.4,0.1205]
[1757654637569,0.3102,4526.5,4526.4,0.3148]
[1757654637966,0.6035,4526.5,4526.4,0.3148]
[1757654639063,0.6035,4526.5,4526.4,23.4148]
[1757654646578,0.6035,4526.5,4526.4,23.4435]
[1757654647285,0.412,4526.5,4526.4,23.4435]
[1757654649272,0.2933,4526.9,4526.5,0.0287]
[1757654649471,0.2933,4526.9,4526.8,1.18438652]
[1757654649674,0.2933,4527.4,4527.3,0.0906]
[1757654649874,0.2933,4527.4,4527.3,0.3423]
[1757654650177,0.488,4527.4,4527.3,0.3136]
[1757654651078,0.6897,4527.4,4527.3,0.3136]
[1757654651279,1.78348652,4527.4,4527.3,0.3136]
[1757654651479,1.78348652,4527.4,4527.3,0.2683]
[1757654652078,0.6897,4527.4,4527.3,0.223]
[1757654657491,1.78348652,4527.4,4527.3,0.223]
[1757654667696,0.488,4527.4,4527.3,0.3141]
[1757654667896,0.2933,4527.4,4527.3,1.43648652]
[1757654669600,0.2933,4527.4,4527.3,0.3427]
[1757654669903,0.2933,4527.4,4527.3,1.43648652]
[1757654671694,0.1187,4528.0,4527.3,1.40788652]
[1757654671898,0.4312,4528.0,4527.9,1.18538652]
[1757654672100,0.6376,4528.0,4527.9,1.40738652]
[1757654672299,0.6376,4528.0,4527.9,24.50738652]
[1757654672904,0.4312,4528.0,4527.9,24.53598652]
[1757654676505,0.4312,4528.0,4527.9,23.4422]
[1757654676710,0.4312,4528.0,4527.9,24.53598652]
[1757654687108,0.3125,4528.4,4527.9,24.53598652]
[1757654687409,0.3281,4528.5,4528.4,0.0916]
[1757654687609,0.3281,4528.5,4528.4,0.3136]
[1757654687810,0.4342,4528.5,4528.4,0.3136]
[1757654688012,0.4342,4528.5,4528.4,0.3422]
[1757654689114,0.4342,4528.5,4528.4,0.3136]
[1757654691610,0.3125,4528.5,4528.4,0.3422]
[1757654691800,0.3125,4528.9,4528.5,0.0286]
[1757654692000,0.5189,4528.9,4528.8,1.18538652]
[1757654692201,0.5189,4528.9,4528.8,1.40738652]
[1757654692403,0.5189,4528.9,4528.8,24.50738652]
[1757654693310,0.5189,4528.9,4528.8,23.4136]
[1757654697017,0.7126,4528.9,4528.8,23.4136]
[1757654701219,0.5189,4528.9,4528.8,23.4136]
[1757654701417,0.5189,4528.9,4528.8,23.442]
[1757654701920,0.5189,4528.9,4528.8,23.7111051]
[1757654702216,0.5189,4528.9,4528.8,23.6827051]
[1757654703114,0.7146,4528.9,4528.8,23.6827051]
[1757654704719,0.5189,4528.9,4528.8,23.6827051]
[1757654706219,0.5189,4528.9,4528.8,23.4607051]
[1757654706415,0.5189,4528.9,4528.8,23.7111051]
[1757654706717,0.5189,4528.9,4528.8,23.6827051]
[1757654707419,0.3125,4528.9,4528.8,23.7111051]
[1757654707614,0.7173,4528.9,4528.8,23.4607051]
[1757654707820,0.93811,4528.9,4528.8,0.4911051]
[1757654708410,0.93811,4528.9,4528.8,0.2691051]
[1757654709823,4.7173,4528.9,4528.8,0.2691051]
[1757654710325,4.93811,4528.9,4528.8,0.2691051]
[1757654710824,4.7173,4528.9,4528.8,0.2691051]
[1757654715318,0.1207,4528.0,4527.6,1.98431938]
[1757654715630,0.7203,4527.1,4527.0,0.1979]
[1757654716929,0.4048,4526.9,4526.8,0.4199]
[1757654717125,0.7203,4526.9,4526.8,0.4199]
[1757654720529,0.7203,4526.9,4526.8,0.6235]
[1757654720718,0.7203,4526.9,4526.8,0.9213]
[1757654722733,0.3155,4527.9,4527.4,0.2978]
[1757654723032,0.841,4528.0,4527.9,0.1979]
[1757654724327,0.3155,4528.0,4527.9,0.6993]
[1757654724536,0.841,4528.5,4528.4,0.4015]
[1757654725531,0.1207,4529.0,4528.5,0.2978]
[1757654725730,0.3298,4530.0,4529.9,0.1979]
[1757654725930,0.3155,4531.3,4530.5,0.3877]
[1757654726226,0.841,4532.5,4531.5,0.0897]
[1757654726427,0.841,4532.5,4531.2,23.1]
[1757654726428,0.7203,4531.7,4531.2,23.1]
[1757654726629,0.7203,4531.3,4531.2,23.323]
[1757654727029,0.7203,4531.3,4531.2,23.1]
[1757654727533,0.1207,4531.0,4530.7,0.223]
[1757654727734,0.7203,4530.8,4530.7,0.223]
[1757654728033,0.7203,4530.8,4530.7,0.27173921]
[1757654728232,0.4107,4530.2,4530.1,0.4295]
[1757654728434,0.7123,4530.2,4530.1,0.89791718]
[1757654728632,0.7123,4530.2,4530.1,23.99791718]
[1757654729430,0.1207,4531.0,4530.3,0.4032]
[1757654729631,0.127,4530.5,4530.4,0.47821718]
[1757654729834,0.8393,4530.5,4530.4,0.47821718]
[1757654730724,0.8393,4530.5,4530.4,0.27171718]
[1757654731028,4.8393,4530.5,4530.4,0.27171718]
[1757654731630,4.8393,4530.5,4530.4,0.01074291]
[1757654731929,4.8393,4530.5,4529.5,23.1]
[1757654732133,0.7123,4529.6,4529.5,23.1]
[1757654732528,0.4107,4529.4,4529.3,0.223]
[1757654732729,0.7123,4529.4,4529.3,0.223]
[1757654732931,0.7123,4529.4,4529.3,23.323]
[1757654733132,0.7123,4529.4,4529.3,23.5295]
[1757654733333,0.7123,4529.4,4529.3,23.7262]
[1757654733632,0.7123,4529.4,4529.3,0.6262]
[1757654733833,0.8393,4529.0,4528.9,0.2065]
[1757654734230,0.8393,4529.0,4528.9,0.4032]
[1757654735736,0.3016,4529.0,4528.9,0.7108]
[1757654735935,0.127,4529.5,4529.0,0.3076]
[1757654736134,0.3288,4529.5,4529.4,0.4032]
[1757654736531,0.6304,4529.5,4529.4,0.4032]
[1757654736835,0.8393,4529.5,4529.4,0.4032]
[1757654737349,0.8393,4529.5,4529.4,23.5032]
[1757654737541,0.8393,4529.5,4529.4,23.3065]
[1757654737737,0.8393,4529.5,4529.4,23.1]
[1757654737942,0.7123,4528.9,4528.8,0.4295]
[1757654738441,0.7123,4528.9,4528.8,0.6262]
[1757654738641,0.7123,4528.9,4528.8,0.223]
[1757654739637,0.7123,4528.9,4528.2,0.223]
[1757654740339,0.8393,4528.5,4528.4,0.2065]
[1757654740843,0.8393,4528.5,4528.4,0.4032]
[1757654741742,0.8393,4528.5,4528.1,23.4076]
[1757654741743,0.3016,4528.4,4528.1,23.1]
[1757654741936,0.3016,4528.4,4528.2,0.3076]
[1757654742142,0.3016,4528.9,4528.3,0.7108]
[1757654742443,0.127,4529.0,4528.3,0.7108]
[1757654742643,0.3016,4528.9,4528.3,0.7108]
[1757654743047,0.127,4529.0,4528.3,0.7108]
[1757654743440,0.3016,4528.9,4528.3,0.7108]
[1757654744045,0.7123,4528.9,4528.8,0.2065]
[1757654744247,0.7123,4528.9,4528.8,0.51497014]
[1757654745546,0.7123,4528.9,4528.8,1.01927014]
[1757654745744,0.3016,4528.9,4528.8,1.01927014]
[1757654745947,0.7123,4528.9,4528.8,0.51497014]
[1757654746147,0.7123,4528.9,4528.8,0.30847014]
[1757654748747,0.7123,4528.9,4528.8,0.51497014]
[1757654750349,0.7123,4528.9,4528.8,0.71167014]
[1757654750538,0.7123,4528.9,4528.8,1.01927014]
[1757654750940,0.7123,4528.9,4528.8,0.71167014]
[1757654751452,0.7123,4528.9,4528.8,0.30847014]
[1757654752648,0.7123,4528.9,4528.8,0.30927878]
[1757654753745,4.7123,4528.9,4528.8,0.30927878]
[1757654753949,0.5034,4527.5,4527.4,0.9409]
[1757654754347,0.5034,4527.5,4527.4,0.4032]
[1757654754348,0.8393,4527.5,4527.4,0.4032]
[1757654754644,0.8393,4527.5,4526.5,0.1007]
[1757654754953,0.127,4527.5,4526.6,23.6377]
[1757654755145,0.2018,4526.7,4526.6,24.0409]
[1757654756351,0.7123,4526.7,4526.6,0.6262]
[1757654756540,0.7123,4526.7,4526.6,0.223]
[1757654757142,0.7123,4526.7,4526.2,0.3147]
[1757654757353,0.7123,4526.3,4526.2,0.5212]
[1757654757945,0.7123,4526.3,4526.2,0.2065]
[1757654759249,0.7123,4526.3,4526.2,0.7111]
[1757654759449,0.2018,4526.3,4526.2,0.7111]
[1757654760149,0.513,4526.3,4526.2,0.7111]
[1757654761254,0.7113,4526.3,4526.1,0.223]
[1757654761551,0.3112,4526.2,4525.8,0.3067]
[1757654761749,0.7085,4525.9,4525.8,0.5037]
[1757654761949,0.7085,4525.9,4525.8,0.7016]
[1757654762250,0.7085,4525.9,4525.8,0.197]
[1757654762549,0.7085,4525.9,4525.0,0.5037]
[1757654762550,0.3973,4525.1,4525.0,0.5037]
[1757654762744,0.7085,4525.1,4525.0,0.197]
[1757654762950,0.7085,4525.1,4525.0,0.7016]
[1757654765842,0.7085,4525.1,4525.0,0.3949]
[1757654766442,0.7085,4525.1,4525.0,0.197]
[1757654766645,0.7085,4525.1,4524.8,0.223]
[1757654766956,0.7085,4524.9,4524.8,0.223]
[1757654767346,0.7085,4524.9,4524.8,0.42]
[1757654767548,0.7085,4524.9,4524.8,0.9246]
[1757654768350,0.1203,4525.5,4524.8,0.6179]
[1757654768555,0.8288,4525.5,4525.4,0.5037]
[1757654769153,0.8288,4525.5,4525.4,0.7016]
[1757654772357,0.8288,4525.5,4525.4,0.3949]
[1757654772555,0.8288,4525.5,4525.0,0.1232]
[1757654772556,0.8288,4525.5,4525.1,0.3067]
[1757654772952,0.8288,4525.5,4524.9,0.3067]
[1757654778360,0.8288,4525.5,4525.4,0.7016]
[1757654778557,0.5176,4526.0,4525.9,0.7016]
[1757654778760,0.5176,4526.0,4525.9,0.3949]
[1757654778949,0.5176,4526.0,4525.4,0.223]
[1757654779154,0.3112,4525.9,4525.5,0.3067]
[1757654779364,0.199,4525.6,4525.5,0.7016]
[1757654779561,0.5102,4525.6,4525.5,0.7016]
[1757654782258,0.7085,4526.4,4526.3,0.5037]
[1757654782458,0.7085,4526.4,4526.3,0.7016]
[1757654783966,0.7085,4526.4,4526.3,0.3949]
[1757654784264,0.7085,4526.4,4526.3,0.197]
[1757654784675,0.7085,4526.4,4526.3,0.5037]
[1757654785566,0.7085,4526.4,4526.3,0.197]
[1757654786166,0.7085,4526.4,4525.6,23.1]
[1757654786364,0.3973,4525.8,4525.7,0.197]
[1757654786566,0.7085,4525.8,4525.7,0.5037]
[1757654786755,0.7085,4525.8,4525.7,0.7016]
[1757654793874,0.199,4525.8,4525.7,0.7016]
[1757654794176,0.516,4525.8,4525.7,0.7016]
[1757654794564,0.317,4526.4,4526.0,0.1239]
[1757654794768,0.317,4526.8,4526.3,0.3977]
[1757654794969,0.717,4526.8,4526.7,0.7083]
[1757654795865,0.717,4526.8,4526.7,0.5023]
[1757654796072,0.717,4526.8,4526.7,0.1917]
[1757654796676,0.717,4526.8,4526.3,0.3106]
[1757654796871,0.717,4526.8,4526.2,0.3106]
[1757654797382,0.717,4526.3,4526.2,0.7083]
[1757654798474,1.81122063,4526.3,4526.2,0.7083]
[1757654798678,1.81122063,4526.3,4526.0,0.223]
[1757654799074,0.717,4526.3,4526.0,0.223]
[1757654799274,0.717,4526.3,4526.2,0.5023]
[1757654799878,0.717,4526.3,4526.2,0.1917]
[1757654801175,0.717,4525.6,4525.5,0.9313]
[1757654801582,0.717,4525.6,4525.5,24.0313]
[1757654802879,0.717,4525.6,4525.5,0.7083]
[1757654804969,0.717,4525.6,4525.5,0.8322]
[1757654805170,0.5147,4525.9,4525.8,0.3977]
[1757654805376,0.717,4525.9,4525.8,0.7083]
[1757654805772,0.317,4525.8,4524.8,0.3106]
[1757654805980,1.81122063,4525.0,4524.9,0.7083]
[1757654806385,1.92922063,4525.0,4524.9,0.7083]
[1757654806770,1.92922063,4525.0,4524.6,0.3106]
[1757654807183,1.81122063,4524.7,4524.6,0.5023]
[1757654807978,0.4,4524.2,4524.1,0.3977]
[1757654808174,0.717,4524.2,4524.1,0.9313]
[1757654808578,0.1977,4524.2,4524.1,0.9313]
[1757654811878,0.5147,4524.2,4524.1,0.9313]
[1757654812685,0.717,4524.2,4524.1,0.9313]
[1757654814183,0.118,4525.0,4524.1,0.9313]
[1757654814383,0.118,4525.0,4524.2,0.3106]
[1757654814384,0.317,4524.9,4524.2,0.3106]
[1757654814882,0.1977,4524.3,4524.2,0.7083]
[1757654815188,0.5147,4524.3,4524.2,0.7083]
[1757654815576,0.717,4524.3,4524.2,0.7083]
[1757654815782,0.717,4524.3,4524.1,0.223]
[1757654816388,0.717,4524.3,4524.2,0.1917]
[1757654816891,0.717,4524.3,4524.2,0.5023]
[1757654817584,0.717,4524.3,4524.2,0.7083]
[1757654818084,0.5147,4524.3,4524.2,0.7083]
[1757654818277,0.3068,4524.6,4524.3,0.2968]
[1757654818480,0.7014,4524.6,4524.5,0.696]
[1757654821990,0.3068,4524.9,4524.5,0.8202]
[1757654822193,0.5066,4524.9,4524.8,0.696]
[1757654822496,0.7014,4524.9,4524.8,0.696]
[1757654822884,0.7014,4523.8,4523.7,0.1951]
[1757654823085,0.7014,4523.8,4523.7,0.3992]
[1757654823387,0.7014,4523.8,4523.7,0.696]
[1757654823988,0.3068,4524.4,4523.8,0.2968]
[1757654824190,0.3068,4524.4,4524.3,0.1951]
[1757654824191,0.7014,4524.4,4524.3,0.1951]
[1757654825590,0.7014,4524.4,4524.3,0.696]
[1757654825786,0.7014,4524.4,4523.7,0.223]
[1757654826192,0.7014,4524.4,4523.8,0.2968]
[1757654827494,0.1196,4524.0,4523.8,0.2968]
[1757654827797,0.7014,4523.9,4523.8,0.4919]
[1757654828298,0.3068,4523.8,4523.2,0.2968]
[1757654828591,0.3068,4523.8,4523.7,0.696]
[1757654828592,0.1998,4523.8,4523.7,0.696]
[1757654828786,0.5066,4524.1,4524.0,0.5234]
[1757654828990,0.5066,4524.1,4524.0,0.8202]
[1757654829186,0.1196,4524.5,4524.0,0.8202]
[1757654829392,0.5066,4524.5,4524.4,0.696]
[1757654829893,0.5066,4524.5,4523.8,0.2968]
[1757654829894,0.821,4524.5,4523.8,0.2968]
[1757654830096,2.10242006,4524.5,4523.8,0.2968]
[1757654831294,0.1196,4524.0,4523.8,0.2968]
[1757654831501,0.7014,4523.9,4523.8,0.4919]
[1757654832494,0.7014,4523.9,4523.8,0.696]
[1757654840898,0.3068,4524.4,4523.9,0.2968]
[1757654841099,0.3068,4524.9,4524.4,0.2968]
[1757654841406,0.7014,4524.9,4524.6,0.2968]
[1757654841698,0.7014,4524.9,4524.8,0.696]
[1757654842101,0.118,4525.5,4524.9,0.2968]
[1757654842102,0.3068,4525.4,4524.9,0.2968]
[1757654842294,0.7014,4525.4,4525.3,0.3992]
[1757654842503,0.7014,4525.4,4525.3,0.696]
[1757654844499,0.7014,4525.4,4525.3,0.1951]
[1757654844700,0.7014,4525.4,4525.0,0.2968]
[1757654844900,0.7014,4525.4,4524.7,0.2968]
[1757654845096,0.3068,4525.3,4525.2,0.1951]
[1757654845301,0.7014,4525.3,4525.2,0.1951]
[1757654845702,0.3194,4525.0,4524.9,0.4919]
[1757654845902,0.821,4525.0,4524.9,0.4919]
[1757654846394,0.821,4525.0,4524.6,0.5208]
[1757654846596,0.7014,4524.7,4524.6,0.92]
[1757654847099,0.1998,4524.7,4524.6,0.92]
[1757654847502,0.7014,4524.7,4524.6,0.92]
[1757654848509,0.7014,4524.7,4524.6,0.696]
[1757654849006,0.5066,4524.7,4524.6,0.696]
[1757654850006,0.703,4524.7,4524.6,0.696]
[1757654851305,0.2001,4525.1,4525.0,0.8529]
[1757654851705,0.7027,4525.1,4525.0,0.7294]
[1757654853707,0.7027,4525.1,4525.0,0.5174]
[1757654854011,0.7027,4525.1,4525.0,0.7294]
[1757654854199,0.7027,4525.1,4525.0,0.8529]
[1757654854710,0.7027,4525.1,4525.0,0.2]
[1757654855806,0.7027,4524.8,4524.7,0.5174]
[1757654856208,0.7027,4524.8,4524.7,0.7294]
[1757654857613,0.2001,4524.8,4524.7,0.7294]
[1757654857810,0.5063,4524.8,4524.7,0.7294]
[1757654858215,0.7027,4524.8,4524.7,0.7294]
[1757654860316,0.2001,4524.8,4524.7,0.7294]
[1757654860610,0.3062,4525.1,4525.0,0.8529]
[1757654860805,0.5063,4525.1,4525.0,0.8529]
[1757654861314,0.7027,4525.1,4525.0,0.7294]
[1757654861907,0.5063,4525.1,4525.0,0.8529]
[1757654862314,0.5063,4525.1,4525.0,23.9529]
[1757654862515,0.7027,4525.1,4525.0,23.9529]
[1757654863420,0.7027,4525.1,4525.0,23.8294]
[1757654866219,0.7027,4525.1,4525.0,0.7294]
[1757654866520,0.7027,4525.1,4525.0,23.8294]
[1757654868514,0.7027,4525.1,4525.0,0.7294]
[1757654870115,0.3965,4524.6,4524.5,0.5174]
[1757654870416,0.3965,4524.6,4524.0,0.1242]
[1757654870417,0.7027,4524.1,4524.0,0.7294]
[1757654871720,0.1151,4524.5,4524.0,0.8529]
[1757654871920,0.6214,4524.5,4524.4,0.412]
[1757654872121,0.8178,4524.5,4524.4,0.7294]
[1757654874524,0.8178,4524.5,4524.4,0.2]
[1757654876522,0.8178,4524.5,4524.0,0.1235]
[1757654876720,0.8178,4524.5,4523.9,0.3174]
[1757654877222,0.6214,4524.5,4524.4,0.412]
[1757654877420,0.8178,4524.5,4524.4,0.7294]
[1757654880329,0.7027,4524.5,4524.4,0.7294]
[1757654881533,0.2001,4524.5,4524.4,0.7294]
[1757654882031,0.3136,4524.7,4524.4,0.7294]
[1757654882330,0.3136,4524.9,4524.5,0.4357]
[1757654882540,0.3136,4524.9,4524.5,0.8538]
[1757654882833,0.7325,4524.9,4524.8,0.7306]
[1757654883028,1.27835819,4524.9,4524.8,0.7306]
[1757654883733,0.7325,4524.9,4524.8,0.7306]
[1757654884329,0.5213,4524.9,4524.8,0.7306]
[1757654886331,0.5213,4524.9,4524.5,0.1232]
[1757654886332,0.8521,4525.5,4525.4,0.2073]
[1757654886531,1.82707492,4525.5,4525.4,0.7306]
[1757654889540,1.30227492,4525.5,4525.4,0.7306]
[1757654889738,1.61587492,4525.5,4525.4,0.7306]
[1757654889936,1.82707492,4525.5,4525.4,0.7306]
[1757654893338,0.7325,4525.5,4525.4,0.7306]
[1757654893636,1.82707492,4525.5,4525.4,0.7306]
[1757654894032,1.95427492,4525.5,4525.4,0.2073]
[1757654894738,1.95427492,4525.5,4525.4,0.5198]
[1757654896335,1.95427492,4525.5,4525.1,0.3125]
[1757654896535,1.82707492,4525.2,4525.1,0.3125]
[1757654896735,1.82707492,4525.2,4525.1,0.5198]
[1757654896934,1.82707492,4525.2,4525.1,0.2073]
[1757654897135,0.4189,4524.9,4524.8,0.5198]
[1757654897343,0.7325,4524.9,4524.8,0.5198]
[1757654897641,1.82707492,4524.9,4524.8,0.7306]
[1757654898042,1.82707492,4524.9,4524.8,0.2073]
[1757654898750,1.82707492,4524.9,4524.8,0.5198]
[1757654899739,1.51347492,4524.9,4524.1,23.1]